fUSD/lending_fUSD_20250906
["ID","MTS","AMOUNT","RATE_DAILY","PERIOD"]
[383947499,1757189665988,300.0,0.0003013,120]
[383947500,1757189666952,300.0,0.0003013,120]
[383947501,1757189667024,300.0,0.0003013,120]
[383947502,1757189667209,300.0,0.0003013,120]
[383947503,1757189667627,300.0,0.0003013,120]
[383947504,1757189668032,300.0,0.0003013,120]
[383947505,1757189668444,300.0,0.0003013,120]
[383947506,1757189668895,300.0,0.0003013,120]
[383947507,1757189675063,300.0,0.0003013,120]
[383947508,1757189675475,300.0,0.0003013,120]
[383947509,1757189675905,300.0,0.0003013,120]
[383947510,1757189720562,300.0,0.00030135,120]
[383947511,1757189757557,300.0,0.00030136,120]
[383947512,1757189760759,300.0,0.00030136,120]
[383947513,1757189765454,300.0,0.00030136,120]
[383947514,1757189767005,300.0,0.00030136,120]
[383947515,1757189770948,300.0,0.00030136,120]
[383947516,1757189785406,300.0,0.00030136,120]
[383947517,1757189809730,589.0,0.00030136,120]
[383947523,1757189907381,170.37,0.00016102,2]
[383947524,1757189907451,170.37,0.00016949,2]
[383947525,1757189907638,170.37,0.00017797,2]
[383947529,1757189987227,-170.37,0.00018644,2]
[383947530,1757189987254,-170.37,0.00019492,2]
[383947558,1757190594204,250.0,0.00015,2]
[383947559,1757190595278,300.0,0.00017,2]
[383947560,1757190597762,-191.20200516,0.00019,2]
[383947561,1757190599723,-158.79799484,0.00019,2]
[383947604,1757190632749,-14.68,0.0002,2]
[383947606,1757190632758,-170.37,0.00020339,2]
[383947608,1757190632767,-1200.0,0.00020554,2]
[383947609,1757190632777,-300.0,0.00020554,2]
[383947612,1757190632786,-2353.84556042,0.00020555,2]
[383947617,1757190632866,-1293.76154033,0.00020555,2]
[383947618,1757190632877,-1124.43976347,0.00020555,2]
[383947619,1757190632889,-9586.31631617,0.00020555,2]
[383947620,1757190632898,-6579.54348406,0.00021,2]
[383947621,1757190632909,-300.46019503,0.00021,2]
[383947622,1757190632939,-757.53870743,0.00021,2]
[383947623,1757190632950,-2601.2120077,0.00021,2]
[383947624,1757190632961,-962.77446077,0.00021,2]
[383947625,1757190632971,-2474.900501,0.00021,2]
[383947627,1757190632983,-370.76858744,0.00021,2]
[383947628,1757190633024,-996.12455018,0.00021,2]
[383947746,1757190638087,-121.68402378,0.00021,2]
[383947748,1757190638097,-170.37,0.00021186,2]
[383947749,1757190638107,-170.37,0.00022034,2]
[383947750,1757190638116,-707.10590923,0.00022367,2]
[383947751,1757190638199,-5892.74685721,0.00022367,2]
[383947752,1757190638209,-269.0,0.00022368,2]
[383947753,1757190638219,-1680.0,0.00022475,2]
[383947754,1757190638228,-170.37,0.00022881,2]
[383947755,1757190638237,-170.37,0.00023729,2]
[383947756,1757190638247,-5000.0,0.00024,5]
[383947757,1757190638257,-1052.49876919,0.00024576,2]
[383947995,1757190640291,-541.913698,0.000199,2]
[383947999,1757190640301,-1298.50123081,0.00024576,2]
[383948003,1757190640310,-170.37,0.00024576,2]
[383948007,1757190640319,-2060.68912647,0.000249,2]
[383948010,1757190640329,-190.03403837,0.00024999,2]
[383948013,1757190640338,-88470.340352,0.00025,2]
[383948016,1757190640347,-16796.2551277,0.00025362,2]
[383948019,1757190640357,-170.37,0.00025424,2]
[383948022,1757190640367,-3635.50301207,0.00025661,2]
[383948025,1757190640376,-1046.51,0.00025674,2]
[383948028,1757190640384,-666.0,0.0002568,3]
[383948031,1757190640394,-500.0,0.00025836,2]
[383948034,1757190640403,-1023.18,0.00026,2]
[383948037,1757190640413,-2231.83587156,0.00026,10]
[383948040,1757190640423,-150.0,0.00026148,2]
[383948043,1757190640432,-2184.93472507,0.00026238,2]
[383948046,1757190640442,-170.37,0.00026271,2]
[383948049,1757190640453,-251.37698276,0.00026294,2]
[383948051,1757190640464,-10545.07131152,0.000265,2]
[383948054,1757190640473,-3292.0,0.00026873,2]
[383948057,1757190640483,-250.0,0.00027,2]
[383948060,1757190640492,-1012.91053864,0.00027,2]
[383948063,1757190640502,-3044.92392935,0.00027,2]
[383948067,1757190640511,-170.37,0.00027119,2]
[383948069,1757190640521,-1776.49650578,0.00027209,2]
[383948072,1757190640530,-1023.18,0.000273,2]
[383948076,1757190640539,-7951.68578094,0.0002739,2]
[383948079,1757190640549,-3174.52649253,0.0002739,2]
[383948082,1757190640558,-150.0,0.0002739,2]
[383948085,1757190640568,-392.14304304,0.00027397,2]
[383948087,1757190640578,-262.11,0.00027485,7]
[383948091,1757190640587,-537.97772422,0.000275,2]
[383948094,1757190640597,-500.0,0.0002755,5]
[383948096,1757190640606,-151.0,0.00027809,2]
[383948099,1757190640616,-151.0,0.00027809,2]
[383948102,1757190640625,-151.0,0.00027809,2]
[383948105,1757190640634,-151.0,0.00027809,2]
[383948108,1757190640644,-151.0,0.00027809,2]
[383948112,1757190640653,-151.0,0.00027809,2]
[383948115,1757190640663,-151.0,0.00027809,2]
[383948117,1757190640672,-151.0,0.00027809,2]
[383948119,1757190640682,-151.0,0.00027809,2]
[383948121,1757190640691,-151.0,0.00027809,2]
[383948123,1757190640700,-151.0,0.00027809,2]
[383948125,1757190640710,-151.0,0.00027809,2]
[383948127,1757190640719,-151.0,0.00027809,2]
[383948129,1757190640729,-151.0,0.00027809,2]
[383948131,1757190640739,-151.0,0.00027809,2]
[383948133,1757190640749,-151.0,0.00027809,2]
[383948135,1757190640758,-151.0,0.00027809,2]
[383948137,1757190640768,-151.0,0.00027809,2]
[383948139,1757190640777,-151.0,0.00027809,2]
[383948141,1757190640787,-151.0,0.00027809,2]
[383948143,1757190640796,-151.0,0.00027809,2]
[383948145,1757190640806,-201.25542629,0.00027809,2]
[383948147,1757190640815,-151.0,0.00027809,2]
[383948149,1757190640824,-151.0,0.00027809,2]
[383948152,1757190640833,-151.0,0.00027809,2]
[383948154,1757190640843,-151.0,0.00027809,2]
[383948156,1757190640852,-151.0,0.00027809,2]
[383948158,1757190640861,-500.0,0.00027809,2]
[383948160,1757190640871,-230.04477686,0.00027809,2]
[383948161,1757190640881,-2060.68912633,0.00027827,8]
[383948162,1757190640891,-500.0,0.00027864,2]
[383948163,1757190640900,-500.0,0.00027919,2]
[383948164,1757190640910,-692.81438498,0.00027929,14]
[383948165,1757190640920,-170.37,0.00027966,2]
[383948190,1757190641171,-500.0,0.00027974,2]
[383948193,1757190641184,-212.2,0.00027999,2]
[383948195,1757190641194,-20945.44261154,0.00028,2]
[383948197,1757190641203,-500.0,0.00028029,2]
[383948199,1757190641212,-500.0,0.00028084,2]
[383948201,1757190641222,-547.95146906,0.00028098,5]
[383948203,1757190641232,-500.0,0.00028139,2]
[383948205,1757190641242,-500.0,0.00028194,2]
[383948207,1757190641251,-500.0,0.00028249,2]
[383948209,1757190641260,-500.0,0.00028304,2]
[383948211,1757190641270,-500.0,0.00028525,5]
[383948213,1757190641280,-500.0,0.00028525,5]
[383948215,1757190641291,-500.0,0.00028525,5]
[383948217,1757190641301,-500.0,0.00028525,5]
[383948219,1757190641312,-367.46583261,0.00028525,5]
[383948221,1757190641322,-8056.85536483,0.000286,2]
[383948223,1757190641331,-2348.82428299,0.00028713,2]
[383948226,1757190641343,-12961.15006893,0.0002876,2]
[383948228,1757190641353,-1181.22904935,0.0002876,2]
[383948230,1757190641363,-170.37,0.00028814,2]
[383948232,1757190641374,-262.11,0.00028823,30]
[383948234,1757190641384,-322.00533328,0.00028909,2]
[383948236,1757190641394,-516.34,0.0002897,30]
[383948238,1757190641403,-51081.81559959,0.00029,2]
[383948240,1757190641414,-5459.7,0.00029009,2]
[383948243,1757190641427,-150.99,0.00029009,2]
[383948245,1757190641436,-599.0,0.00029041,2]
[383948247,1757190641446,-500.0,0.0002915,5]
[383948249,1757190641460,-243.51797688,0.0002915,2]
[383948251,1757190641470,-500.0,0.0002915,5]
[383948253,1757190641479,-4609.0,0.00029384,2]
[383948255,1757190641488,-2348.82428292,0.00029469,2]
[383948257,1757190641499,-170.37,0.00029661,2]
[383948259,1757190641508,-4342.48242088,0.0003,30]
[383948261,1757190641518,-56548.93677182,0.0003,2]
[383948263,1757190641528,-9611.96011867,0.0003,2]
[383948265,1757190641539,-322.00533326,0.00030049,2]
[383948267,1757190641548,-153.0,0.00030084,2]
[383948269,1757190641557,-153.0,0.00030084,2]
[383948271,1757190641570,-153.0,0.00030084,2]
[383948273,1757190641580,-153.0,0.00030084,2]
[383948275,1757190641590,-153.0,0.00030084,2]
[383948277,1757190641600,-153.0,0.00030084,2]
[383948279,1757190641609,-153.0,0.00030084,2]
[383948281,1757190641618,-153.0,0.00030084,2]
[383948283,1757190641628,-153.0,0.00030084,2]
[383948285,1757190641638,-153.0,0.00030084,2]
[383948287,1757190641647,-153.0,0.00030084,2]
[383948289,1757190641657,-153.0,0.00030084,2]
[383948291,1757190641667,-153.0,0.00030084,2]
[383948293,1757190641677,-153.0,0.00030084,2]
[383948296,1757190641687,-153.0,0.00030084,2]
[383948298,1757190641699,-153.0,0.00030084,2]
[383948300,1757190641708,-153.0,0.00030084,2]
[383948302,1757190641718,-153.0,0.00030084,2]
[383948304,1757190641728,-153.0,0.00030084,2]
[383948306,1757190641737,-153.0,0.00030084,2]
[383948308,1757190641746,-153.0,0.00030084,2]
[383948310,1757190641755,-153.0,0.00030084,2]
[383948312,1757190641765,-153.0,0.00030084,2]
[383948314,1757190641774,-153.0,0.00030084,2]
[383948316,1757190641783,-153.0,0.00030084,2]
[383948318,1757190641793,-153.0,0.00030084,2]
[383948320,1757190641803,-153.0,0.00030084,2]
[383948322,1757190641814,-153.0,0.00030084,2]
[383948324,1757190641824,-153.0,0.00030084,2]
[383948326,1757190641834,-153.0,0.00030084,2]
[383948328,1757190641845,-153.0,0.00030084,2]
[383948330,1757190641855,-153.0,0.00030085,2]
[383948332,1757190641867,-153.0,0.00030085,2]
[383948334,1757190641877,-153.0,0.00030085,2]
[383948335,1757190641887,-153.0,0.00030085,2]
[383948337,1757190641898,-153.0,0.00030085,2]
[383948339,1757190641907,-153.0,0.00030085,2]
[383948341,1757190641917,-153.0,0.00030085,2]
[383948344,1757190641926,-153.0,0.00030085,2]
[383948345,1757190641935,-153.0,0.00030085,2]
[383948347,1757190641944,-153.0,0.00030085,2]
[383948349,1757190641954,-153.0,0.00030085,2]
[383948351,1757190641963,-153.0,0.00030085,2]
[383948354,1757190641972,-153.0,0.00030085,2]
[383948356,1757190641982,-153.0,0.00030085,2]
[383948358,1757190641992,-153.0,0.00030085,2]
[383948360,1757190642001,-153.0,0.00030085,2]
[383948361,1757190642011,-153.0,0.00030085,2]
[383948362,1757190642021,-153.0,0.00030085,2]
[383948363,1757190642030,-153.0,0.00030085,2]
[383948364,1757190642040,-153.0,0.00030085,2]
[383948365,1757190642049,-153.0,0.00030085,2]
[383948366,1757190642059,-153.0,0.00030085,2]
[383948367,1757190642068,-153.0,0.00030085,2]
[383948368,1757190642078,-153.0,0.00030085,2]
[383948369,1757190642087,-153.0,0.00030085,2]
[383948370,1757190642096,-153.0,0.00030085,2]
[383948371,1757190642105,-153.0,0.00030085,2]
[383948372,1757190642115,-153.0,0.00030085,2]
[383948373,1757190642125,-153.0,0.00030085,2]
[383948374,1757190642134,-153.0,0.00030085,2]
[383948375,1757190642144,-153.0,0.00030085,2]
[383948376,1757190642154,-153.0,0.00030085,2]
[383948377,1757190642164,-153.0,0.00030085,2]
[383948378,1757190642173,-153.0,0.00030085,2]
[383948379,1757190642183,-153.0,0.00030085,2]
[383948380,1757190642193,-153.0,0.00030085,2]
[383948381,1757190642202,-153.0,0.00030085,2]
[383948382,1757190642212,-153.0,0.00030085,2]
[383948383,1757190642222,-153.0,0.00030085,2]
[383948384,1757190642231,-153.0,0.00030085,2]
[383948385,1757190642241,-153.0,0.00030085,2]
[383948386,1757190642251,-153.0,0.00030085,2]
[383948387,1757190642261,-153.0,0.00030085,2]
[383948388,1757190642271,-153.0,0.00030085,2]
[383948389,1757190642282,-153.0,0.00030085,2]
[383948390,1757190642292,-153.0,0.00030085,2]
[383948391,1757190642302,-153.0,0.00030085,2]
[383948392,1757190642311,-153.0,0.00030085,2]
[383948393,1757190642323,-153.0,0.00030085,2]
[383948394,1757190642334,-153.0,0.00030085,2]
[383948395,1757190642345,-153.0,0.00030085,2]
[383948396,1757190642356,-153.0,0.00030085,2]
[383948397,1757190642367,-153.0,0.00030085,2]
[383948398,1757190642377,-153.0,0.00030085,2]
[383948399,1757190642388,-153.0,0.00030085,2]
[383948400,1757190642398,-153.0,0.00030085,2]
[383948401,1757190642409,-153.0,0.00030085,2]
[383948402,1757190642419,-153.0,0.00030085,2]
[383948403,1757190642431,-153.0,0.00030085,2]
[383948404,1757190642442,-153.0,0.00030085,2]
[383948405,1757190642455,-153.0,0.00030085,2]
[383948406,1757190642468,-153.0,0.00030085,2]
[383948407,1757190642477,-153.0,0.00030085,2]
[383948408,1757190642487,-153.0,0.00030085,2]
[383948409,1757190642497,-153.0,0.00030085,2]
[383948410,1757190642507,-153.0,0.00030085,2]
[383948411,1757190642516,-153.0,0.00030085,2]
[383948412,1757190642528,-153.0,0.00030085,2]
[383948413,1757190642539,-153.0,0.00030085,2]
[383948414,1757190642550,-153.0,0.00030085,2]
[383948415,1757190642559,-153.0,0.00030085,2]
[383948416,1757190642568,-153.0,0.00030085,2]
[383948417,1757190642579,-153.0,0.00030085,2]
[383948418,1757190642589,-153.0,0.00030085,2]
[383948419,1757190642599,-153.0,0.00030085,2]
[383948420,1757190642610,-153.0,0.00030085,2]
[383948421,1757190642620,-153.0,0.00030085,2]
[383948422,1757190642631,-153.0,0.00030085,2]
[383948423,1757190642640,-153.0,0.00030085,2]
[383948424,1757190642650,-153.0,0.00030085,2]
[383948425,1757190642659,-153.0,0.00030085,2]
[383948426,1757190642668,-153.0,0.00030085,2]
[383948427,1757190642678,-153.0,0.00030085,2]
[383948428,1757190642687,-153.0,0.00030085,2]
[383948429,1757190642698,-153.0,0.00030085,2]
[383948430,1757190642707,-153.0,0.00030085,2]
[383948431,1757190642717,-153.0,0.00030085,2]
[383948432,1757190642728,-153.0,0.00030085,2]
[383948433,1757190642737,-153.0,0.00030085,2]
[383948434,1757190642747,-153.0,0.00030085,2]
[383948435,1757190642756,-153.0,0.00030085,2]
[383948436,1757190642766,-153.0,0.00030085,2]
[383948437,1757190642776,-153.0,0.00030085,2]
[383948438,1757190642786,-479.21,0.00030125,2]
[383948439,1757190642796,-262.11,0.00030137,30]
[383948440,1757190642806,-2348.82428292,0.00030225,2]
[383948441,1757190642815,-170.37,0.00030508,2]
[383948442,1757190642825,-150.0,0.00030684,120]
[383948443,1757190642835,-2060.68912633,0.00030754,14]
[383948444,1757190642844,-150.0,0.00030821,120]
[383948445,1757190642853,-166.8,0.0003084,2]
[383948446,1757190642863,-2624.3,0.00030851,120]
[383948447,1757190642872,-176.66,0.00030862,120]
[383948448,1757190642882,-160.0,0.00030912,7]
[383948449,1757190642893,-150.0,0.00030958,120]
[383948450,1757190642902,-2348.82428292,0.00030981,2]
[383948451,1757190642911,-150.0,0.00031095,120]
[383948452,1757190642921,-322.00533326,0.00031188,2]
[383948453,1757190642930,-150.0,0.00031232,120]
[383948454,1757190642939,-479.21,0.00031254,2]
[383948455,1757190642949,-1789.298,0.00031315,29]
[383948457,1757190642959,-187.954,0.00031315,29]
[383948458,1757190642968,-170.37,0.00031356,2]
[383948460,1757190642977,-150.0,0.00031369,120]
[383948462,1757190642986,-151.0,0.00031409,2]
[383948463,1757190642996,-322.6107,0.00031409,2]
[383948464,1757190643006,-151.0,0.00031409,2]
[383948466,1757190643015,-389.9769229,0.00031409,2]
[383948467,1757190643024,-3000.0,0.00031409,2]
[383948468,1757190643034,-151.0,0.00031409,2]
[383948469,1757190643043,-151.0,0.00031409,2]
[383948470,1757190643052,-151.0,0.00031409,2]
[383948471,1757190643062,-151.0,0.00031409,2]
[383948472,1757190643071,-1000.0,0.00031409,2]
[383948473,1757190643080,-1000.0,0.00031409,2]
[383948474,1757190643090,-1000.0,0.00031409,2]
[383948475,1757190643099,-151.0,0.00031409,2]
[383948476,1757190643108,-1000.0,0.00031409,2]
[383948477,1757190643118,-151.0,0.00031409,2]
[383948479,1757190643127,-250.0,0.00031409,2]
[383948481,1757190643136,-151.0,0.00031409,2]
[383948483,1757190643146,-1000.0,0.00031409,2]
[383948485,1757190643155,-250.0,0.00031409,2]
[383948486,1757190643164,-151.0,0.00031409,2]
[383948487,1757190643173,-1000.0,0.00031409,2]
[383948488,1757190643183,-250.0,0.00031409,2]
[383948489,1757190643192,-151.0,0.00031409,2]
[383948490,1757190643201,-695.39793187,0.00031409,2]
[383948491,1757190643210,-1000.0,0.00031409,2]
[383948492,1757190643220,-250.0,0.00031409,2]
[383948493,1757190643229,-151.0,0.00031409,2]
[383948494,1757190643239,-1000.0,0.00031409,2]
[383948495,1757190643248,-250.0,0.00031409,2]
[383948496,1757190643257,-151.0,0.00031409,2]
[383948497,1757190643267,-1000.0,0.00031409,2]
[383948498,1757190643276,-151.0,0.00031409,2]
[383948499,1757190643286,-250.0,0.00031409,2]
[383948500,1757190643295,-1029.6258247,0.00031409,2]
[383948501,1757190643305,-151.0,0.00031409,2]
[383948502,1757190643314,-250.0,0.00031409,2]
[383948503,1757190643323,-151.0,0.00031409,2]
[383948504,1757190643332,-250.0,0.00031409,2]
[383948505,1757190643342,-151.0,0.00031409,2]
[383948506,1757190643351,-250.0,0.00031409,2]
[383948507,1757190643360,-151.0,0.00031409,2]
[383948508,1757190643370,-250.0,0.00031409,2]
[383948509,1757190643379,-151.0,0.00031409,2]
[383948510,1757190643389,-250.0,0.00031409,2]
[383948511,1757190643398,-151.0,0.00031409,2]
[383948512,1757190643407,-250.0,0.00031409,2]
[383948513,1757190643417,-151.0,0.00031409,2]
[383948514,1757190643426,-267.46074303,0.00031409,2]
[383948515,1757190643436,-151.0,0.00031409,2]
[383948516,1757190643445,-250.0,0.00031409,2]
[383948517,1757190643457,-250.0,0.00031409,2]
[383948518,1757190643468,-500.0,0.00031409,2]
[383948519,1757190643480,-160.0,0.00031409,2]
[383948520,1757190643491,-500.0,0.00031409,2]
[383948521,1757190643502,-500.0,0.00031409,2]
[383948522,1757190643512,-500.0,0.00031409,2]
[383948523,1757190643522,-500.0,0.00031409,2]
[383948524,1757190643533,-500.0,0.00031409,2]
[383948525,1757190643544,-500.0,0.00031409,2]
[383948526,1757190643555,-500.0,0.00031409,2]
[383948527,1757190643565,-500.0,0.00031409,2]
[383948528,1757190643574,-500.0,0.00031409,2]
[383948529,1757190643584,-432.09964667,0.00031409,2]
[383948530,1757190643593,-151.0,0.00031409,2]
[383948531,1757190643603,-201.93286099,0.00031409,2]
[383948532,1757190643612,-250.0,0.00031409,2]
[383948533,1757190643622,-264.37230147,0.00031409,2]
[383948534,1757190643632,-262.11,0.000315,30]
[383948535,1757190643642,-150.0,0.00031506,120]
[383948536,1757190643652,-150.0,0.00031643,120]
[383948537,1757190643662,-2348.82428292,0.00031737,2]
[383948538,1757190643672,-150.0,0.0003178,120]
[383948539,1757190643683,-150.0,0.00031917,120]
[383948540,1757190643693,-162.28365577,0.00031937,2]
[383948552,1757190644746,-1763.34352191,0.00031937,2]
[383948558,1757190647440,-3074.37282232,0.00031937,2]
[383948559,1757190647449,-151.0,0.00031957,2]
[383948560,1757190647462,-7774.06144616,0.00032,5]
[383948561,1757190647471,-160.0,0.00032024,2]
[383948562,1757190647482,-514.85095374,0.00032024,2]
[383948563,1757190647491,-160.0,0.00032024,2]
[383948564,1757190647504,-212.67823062,0.00032024,2]
[383948565,1757190647515,-150.0,0.00032054,120]
[383948566,1757190647524,-150.0,0.00032055,2]
[383948567,1757190647534,-5044.0,0.00032093,2]
[383948568,1757190647544,-2000.0,0.000321,2]
[383948569,1757190647553,-4955.0,0.00032131,3]
[383948570,1757190647563,-150.0,0.00032191,120]
[383948571,1757190647573,-170.37,0.00032203,2]
[383948572,1757190647582,-5044.0,0.00032308,7]
[383948573,1757190647592,-322.00533326,0.00032328,2]
[383948574,1757190647604,-150.0,0.00032328,120]
[383948575,1757190647615,-5044.0,0.00032379,7]
[383948576,1757190647625,-479.21,0.00032384,2]
[383948577,1757190647635,-2118.3464,0.00032432,2]
[383948578,1757190647644,-236.78126501,0.00032465,120]
[383948579,1757190647654,-151.0,0.00032489,7]
[383948580,1757190647663,-2348.82428292,0.00032492,2]
[383948581,1757190647673,-200.0,0.00032493,2]
[383948582,1757190647683,-151.0,0.00032505,2]
[383948583,1757190647692,-150.33,0.00032518,2]
[383948584,1757190647701,-5044.0,0.00032532,2]
[383948585,1757190647710,-2536.06542455,0.00032537,7]
[383948586,1757190647724,-2507.93457545,0.00032537,7]
[383948587,1757190647734,-2934.0,0.00032675,7]
[383948588,1757190647744,-5044.0,0.00032735,2]
[383948589,1757190647753,-334.5472959,0.00032778,2]
[383948590,1757190647763,-2112.54260782,0.00032778,2]
[383948591,1757190647772,-277.35679052,0.00032778,2]
[383948592,1757190647782,-160.0,0.00032778,2]
[383948593,1757190647792,-262.11,0.00032838,30]
[383948594,1757190647802,-12077.28251541,0.00032853,30]
[383948595,1757190647811,-789.78301001,0.00032995,30]
[383948596,1757190647821,-151.0,0.0003301,2]
[383948597,1757190647830,-151.0,0.0003301,2]
[383948598,1757190647840,-151.0,0.0003301,2]
[383948599,1757190647849,-151.0,0.0003301,2]
[383948600,1757190647859,-151.0,0.0003301,2]
[383948601,1757190647869,-151.0,0.0003301,2]
[383948602,1757190647879,-151.0,0.0003301,2]
[383948603,1757190647895,-151.0,0.00033053,2]
[383948604,1757190647912,-152.37,0.0003309,2]
[383948605,1757190647930,-500.0,0.000331,5]
[383948606,1757190647949,-542.32228893,0.000331,5]
[383948607,1757190647966,-166.67,0.0003317,2]
[383948608,1757190647982,-2348.82428292,0.00033248,2]
[383948609,1757190648001,-1000.0,0.000334,7]
[383948610,1757190648019,-300.0,0.00033452,2]
[383948611,1757190648036,-322.00533326,0.00033467,2]
[383948612,1757190648056,-479.21,0.00033514,2]
[383948613,1757190648075,-250.0,0.00033543,2]
[383948614,1757190648092,-6951.7593183,0.00033582,2]
[383948615,1757190648103,-155.29303732,0.00033601,2]
[383948616,1757190648121,-2060.68912633,0.00033682,21]
[383948617,1757190648133,-3011.38049103,0.00033739,2]
[383948618,1757190648151,-6951.75931828,0.00033797,2]
[383948619,1757190648164,-4025.5161,0.00033887,2]
[383948620,1757190648188,-6965.5027,0.00033887,2]
[383948621,1757190648204,-231.7389,0.00033887,2]
[383948622,1757190648220,-5044.0,0.00033899,2]
[383948623,1757190648235,-2934.0,0.00033978,2]
[383948624,1757190648250,-2935.0,0.00033987,2]
[383948625,1757190648265,-2348.82428292,0.00034004,2]
[383948626,1757190648280,-6951.75931828,0.00034012,2]
[383948627,1757190648297,-2500.0,0.00034055,2]
[383948628,1757190648312,-174.35,0.00034082,2]
[383948629,1757190648328,-288.7,0.00034082,2]
[383948630,1757190648344,-409.88,0.00034082,2]
[383948631,1757190648359,-174.35,0.00034082,2]
[383948632,1757190648374,-2935.0,0.00034114,7]
[383948633,1757190648390,-346.92554585,0.00034147,2]
[383948634,1757190648405,-287.61899177,0.00034147,2]
[383948635,1757190648420,-160.0,0.00034147,2]
[383948636,1757190648436,-721.12765535,0.00034148,2]
[383948637,1757190648451,-209.40437684,0.00034148,2]
[383948638,1757190648475,-4591.64765691,0.00034154,2]
[383948639,1757190648491,-567.0,0.00034155,2]
[383948640,1757190648507,-1301.0,0.00034155,2]
[383948641,1757190648522,-1578.0,0.00034155,2]
[383948642,1757190648537,-600.0,0.00034155,2]
[383948643,1757190648553,-811.0,0.00034155,2]
[383948644,1757190648567,-1176.0,0.00034155,2]
[383948645,1757190648582,-896.0,0.00034155,2]
[383948646,1757190648597,-3383.0,0.00034155,2]
[383948647,1757190648612,-157.964,0.00034155,2]
[383948648,1757190648628,-2035.0,0.00034155,2]
[383948649,1757190648644,-6165.0,0.00034155,2]
[383948650,1757190648659,-924.0,0.00034155,2]
[383948651,1757190648674,-1258.0,0.00034155,2]
[383948652,1757190648689,-262.11,0.00034176,30]
[383948653,1757190648704,-2935.0,0.00034188,2]
[383948654,1757190648718,-1532.0,0.000342,2]
[383948655,1757190648732,-3054.0,0.00034209,2]
[383948656,1757190648747,-2934.0,0.0003422,2]
[383948657,1757190648762,-6951.75931828,0.00034227,2]
[383948658,1757190648776,-6951.75931828,0.00034442,2]
[383948659,1757190648792,-300.0,0.000346,12]
[383948660,1757190648808,-152.03425874,0.000346,2]
[383948661,1757190648823,-152.0342587,0.000346,2]
[383948662,1757190648838,-152.0342587,0.000346,2]
[383948663,1757190648854,-152.0342587,0.000346,2]
[383948664,1757190648873,-152.0342587,0.000346,2]
[383948665,1757190648888,-322.00533326,0.00034607,2]
[383948666,1757190648904,-1501.0,0.0003461,2]
[383948667,1757190648920,-479.21,0.00034643,2]
[383948668,1757190648936,-6000.70407076,0.00034656,2]
[383948670,1757190824562,353.41,0.00016354,2]
[383948671,1757190824785,353.41,0.00017215,2]
[383948672,1757190825198,353.41,0.00018075,2]
[383948673,1757190843397,-353.41,0.00018936,2]
[383948675,1757191310929,-353.41,0.00019797,2]
[383948676,1757191338739,-353.41,0.00020657,2]
[383948678,1757191653146,-353.41,0.00021518,2]
[383948679,1757191653180,-39.77,0.00022379,2]
[383948680,1757191653201,-313.64,0.00022379,2]
[383948681,1757191653210,-39.77,0.0002324,2]